[Event "Live Chess"]
[Site "Chess.com"]
[Date "2023.05.20"]
[Round "-"]
[White "flyingpuffins"]
[Black "MizYanKo"]
[Result "1-0"]
[WhiteElo "1984"]
[BlackElo "564"]
[TimeControl "300"]
[EndTime "9:37:48 PDT"]
[Termination "flyingpuffins won by checkmate"]

1. d4 {[%clk 0:04:58.9]} 1... d5 {[%clk 0:04:52.9]} 2. e4 {[%clk 0:04:53.9]}
2... e5 {[%clk 0:04:41.1]} 3. dxe5 {[%clk 0:04:46.1]} 3... dxe4 {[%clk
0:04:37.2]} 4. Qxd8+ {[%clk 0:04:45.7]} 4... Kxd8 {[%clk 0:04:34.1]} 5. Nc3
{[%clk 0:04:44.9]} 5... Bf5 {[%clk 0:04:19.2]} 6. Nge2 {[%clk 0:04:42.4]} 6...
Bb4 {[%clk 0:04:08.6]} 7. Bg5+ {[%clk 0:04:38.3]} 7... Ne7 {[%clk 0:04:00.2]} 8.
O-O-O+ {[%clk 0:04:36.8]} 8... Nd7 {[%clk 0:04:00.1]} 9. Nd5 {[%clk 0:04:31.9]}
9... Ke8 {[%clk 0:03:52.3]} 10. Nxb4 {[%clk 0:04:30.4]} 10... Nxe5 {[%clk
0:03:40.3]} 11. Ng3 {[%clk 0:04:24.2]} 11... Rd8 {[%clk 0:03:29.7]} 12. Rxd8+
{[%clk 0:04:20]} 12... Kxd8 {[%clk 0:03:26.7]} 13. Bxe7+ {[%clk 0:04:19.7]}
13... Kxe7 {[%clk 0:03:23.6]} 14. Nxf5+ {[%clk 0:04:19.4]} 14... Kf6 {[%clk
0:03:21.6]} 15. Ng3 {[%clk 0:04:17.3]} 15... Rd8 {[%clk 0:02:50.9]} 16. Be2
{[%clk 0:04:15]} 16... c5 {[%clk 0:02:50.8]} 17. Nxe4+ {[%clk 0:04:08.7]} 17...
Kf5 {[%clk 0:02:48.2]} 18. Nxc5 {[%clk 0:04:07.8]} 18... Kf4 {[%clk 0:02:40.2]}
19. Nbd3+ {[%clk 0:04:06.3]} 19... Kf5 {[%clk 0:02:36.1]} 20. Nxe5 {[%clk
0:04:05.6]} 20... Kxe5 {[%clk 0:02:33.9]} 21. Bf3 {[%clk 0:04:04.2]} 21... Rd4
{[%clk 0:02:22]} 22. Re1+ {[%clk 0:04:00.6]} 22... Kd6 {[%clk 0:02:05.3]} 23.
Nxb7+ {[%clk 0:03:59.7]} 23... Kc7 {[%clk 0:02:02.1]} 24. Nc5 {[%clk 0:03:56.8]}
24... Kb6 {[%clk 0:01:58.8]} 25. Nb3 {[%clk 0:03:55.2]} 25... Kb5 {[%clk
0:01:52.8]} 26. Nxd4+ {[%clk 0:03:54.3]} 26... Kc4 {[%clk 0:01:50.6]} 27. Re7
{[%clk 0:03:54.2]} 27... Kxd4 {[%clk 0:01:49.1]} 28. Rxf7 {[%clk 0:03:54.1]}
28... Ke5 {[%clk 0:01:42.4]} 29. Rxg7 {[%clk 0:03:54]} 29... Kf6 {[%clk
0:01:40.1]} 30. Rxa7 {[%clk 0:03:53.9]} 30... Kg6 {[%clk 0:01:38.3]} 31. Rxh7
{[%clk 0:03:53.7]} 31... Kxh7 {[%clk 0:01:36.2]} 32. a4 {[%clk 0:03:53.6]} 32...
Kh6 {[%clk 0:01:34.4]} 33. a5 {[%clk 0:03:53.5]} 33... Kg7 {[%clk 0:01:31.6]}
34. a6 {[%clk 0:03:53.4]} 34... Kf7 {[%clk 0:01:30.5]} 35. a7 {[%clk 0:03:53.3]}
35... Ke7 {[%clk 0:01:29.4]} 36. a8=Q {[%clk 0:03:53.2]} 36... Kd7 {[%clk
0:01:28.3]} 37. Qe4 {[%clk 0:03:52.2]} 37... Kd6 {[%clk 0:01:26.4]} 38. Qc6+
{[%clk 0:03:52.1]} 38... Ke5 {[%clk 0:01:23]} 39. b4 {[%clk 0:03:52]} 39... Kd4
{[%clk 0:01:20.4]} 40. b5 {[%clk 0:03:51.9]} 40... Ke5 {[%clk 0:01:09.8]} 41. b6
{[%clk 0:03:51.8]} 41... Kf4 {[%clk 0:01:07.6]} 42. b7 {[%clk 0:03:51.7]} 42...
Kg5 {[%clk 0:01:03.9]} 43. b8=Q {[%clk 0:03:48.4]} 43... Kf5 {[%clk 0:01:03.8]}
44. Qf8+ {[%clk 0:03:45.3]} 44... Ke5 {[%clk 0:00:27.5]} 45. Qd5# {[%clk
0:03:45.2]} 1-0

[Event "Live Chess"]
[Site "Chess.com"]
[Date "2023.05.20"]
[Round "-"]
[White "McSlash1"]
[Black "seuen"]
[Result "1-0"]
[WhiteElo "2071"]
[BlackElo "1142"]
[TimeControl "300"]
[EndTime "9:37:49 PDT"]
[Termination "McSlash1 won on time"]

1. e4 {[%clk 0:04:59.3]} 1... c5 {[%clk 0:04:58.9]} 2. Nc3 {[%clk 0:04:58.2]}
2... Nc6 {[%clk 0:04:57.3]} 3. f4 {[%clk 0:04:57.8]} 3... g6 {[%clk 0:04:55.4]}
4. Nf3 {[%clk 0:04:57.4]} 4... Bg7 {[%clk 0:04:52.8]} 5. Bc4 {[%clk 0:04:56.7]}
5... d6 {[%clk 0:04:51.8]} 6. O-O {[%clk 0:04:56.1]} 6... Nf6 {[%clk 0:04:46.7]}
7. d3 {[%clk 0:04:54.7]} 7... a6 {[%clk 0:04:43.1]} 8. f5 {[%clk 0:04:52.1]}
8... b5 {[%clk 0:04:39.9]} 9. Bb3 {[%clk 0:04:51.2]} 9... Na5 {[%clk 0:04:25.9]}
10. fxg6 {[%clk 0:04:48]} 10... hxg6 {[%clk 0:04:23.7]} 11. Nd5 {[%clk 0:04:42]}
11... Nxb3 {[%clk 0:04:21.4]} 12. Nxf6+ {[%clk 0:04:30.5]} 12... Bxf6 {[%clk
0:04:17.5]} 13. axb3 {[%clk 0:04:30.1]} 13... Bg4 {[%clk 0:04:10.2]} 14. Qe1
{[%clk 0:04:22.9]} 14... Kd7 {[%clk 0:03:42.4]} 15. c3 {[%clk 0:04:17.4]} 15...
Qb6 {[%clk 0:03:33]} 16. Be3 {[%clk 0:04:14.3]} 16... Rh5 {[%clk 0:03:11.5]} 17.
Qg3 {[%clk 0:04:08.4]} 17... Bxf3 {[%clk 0:03:03]} 18. Qxf3 {[%clk 0:04:08.3]}
18... Rah8 {[%clk 0:03:00.9]} 19. h3 {[%clk 0:04:05.1]} 19... Qd8 {[%clk
0:02:48.4]} 20. Rxa6 {[%clk 0:04:02]} 20... Qb8 {[%clk 0:02:13.2]} 21. e5 {[%clk
0:03:56.9]} 21... dxe5 {[%clk 0:01:59.6]} 22. Qc6+ {[%clk 0:03:55.7]} 22... Kd8
{[%clk 0:01:57.4]} 23. Ra8 {[%clk 0:03:53.6]} 23... Qxa8 {[%clk 0:01:54.8]} 24.
Qxa8+ {[%clk 0:03:53.5]} 24... Kd7 {[%clk 0:01:54.3]} 25. Qd5+ {[%clk
0:03:51.1]} 25... Ke8 {[%clk 0:01:53.1]} 26. Bxc5 {[%clk 0:03:48.2]} 26... e4
{[%clk 0:01:49.7]} 27. Bb6 {[%clk 0:03:42.9]} 27... Rxd5 {[%clk 0:01:47.3]} 28.
dxe4 {[%clk 0:03:37.7]} 28... Rg5 {[%clk 0:01:37.2]} 29. Rd1 {[%clk 0:03:34.8]}
29... e6 {[%clk 0:01:32.4]} 30. Kf2 {[%clk 0:03:25.7]} 30... Kf8 {[%clk
0:00:39.5]} 31. Kf3 {[%clk 0:03:23.5]} 31... b4 {[%clk 0:00:18.3]} 32. c4 {[%clk
0:03:16.4]} 32... Kg7 {[%clk 0:00:14.7]} 33. Rd2 {[%clk 0:03:09.6]} 33... Rb8
{[%clk 0:00:13.6]} 34. c5 {[%clk 0:03:08]} 34... Be7 {[%clk 0:00:11.1]} 35. Bc7
{[%clk 0:03:05.8]} 35... Rc8 {[%clk 0:00:09.5]} 36. Bd6 {[%clk 0:03:04.5]} 36...
Bxd6 {[%clk 0:00:08.1]} 37. cxd6 {[%clk 0:03:04.4]} 37... Rd8 {[%clk 0:00:07.6]}
38. Kf4 {[%clk 0:03:01.2]} 38... Rb5 {[%clk 0:00:06.3]} 39. e5 {[%clk
0:03:00.4]} 39... Rb6 {[%clk 0:00:04.5]} 40. Rc2 {[%clk 0:02:58.9]} 40... f6
{[%clk 0:00:03.6]} 41. Rc7+ {[%clk 0:02:57.3]} 41... Kh6 {[%clk 0:00:01.6]} 42.
d7 {[%clk 0:02:52.4]} 42... fxe5+ {[%clk 0:00:00.3]} 43. Kxe5 {[%clk 0:02:52.3]}
1-0

[Event "Live Chess"]
[Site "Chess.com"]
[Date "2023.05.20"]
[Round "-"]
[White "siddu198"]
[Black "SimpleHarmonic1"]
[Result "0-1"]
[WhiteElo "1617"]
[BlackElo "2076"]
[TimeControl "300"]
[EndTime "9:37:51 PDT"]
[Termination "SimpleHarmonic1 won by checkmate"]

1. e4 {[%clk 0:04:58.9]} 1... d6 {[%clk 0:04:58]} 2. d4 {[%clk 0:04:57.9]} 2...
Nf6 {[%clk 0:04:56.8]} 3. Bd3 {[%clk 0:04:55]} 3... e5 {[%clk 0:04:54.8]} 4. d5
{[%clk 0:04:53.6]} 4... g6 {[%clk 0:04:50.7]} 5. c4 {[%clk 0:04:51.6]} 5... Bg7
{[%clk 0:04:49.7]} 6. Nc3 {[%clk 0:04:51.2]} 6... O-O {[%clk 0:04:48.2]} 7. Nf3
{[%clk 0:04:50.8]} 7... a5 {[%clk 0:04:45.8]} 8. Be3 {[%clk 0:04:49.9]} 8... Bg4
{[%clk 0:04:43]} 9. Qd2 {[%clk 0:04:49.2]} 9... b6 {[%clk 0:04:40.8]} 10. Be2
{[%clk 0:04:46.1]} 10... Nbd7 {[%clk 0:04:29]} 11. h3 {[%clk 0:04:45]} 11...
Bxf3 {[%clk 0:04:27.5]} 12. Bxf3 {[%clk 0:04:44]} 12... Nc5 {[%clk 0:04:27]} 13.
a3 {[%clk 0:04:34.9]} 13... Nb3 {[%clk 0:04:18.7]} 14. Qd1 {[%clk 0:04:33.9]}
14... Nxa1 {[%clk 0:04:17.7]} 15. Qxa1 {[%clk 0:04:33.8]} 15... Nd7 {[%clk
0:04:11.5]} 16. Nb5 {[%clk 0:04:32.1]} 16... f5 {[%clk 0:04:07.6]} 17. exf5
{[%clk 0:04:29.9]} 17... gxf5 {[%clk 0:04:05.9]} 18. g3 {[%clk 0:04:16.5]} 18...
f4 {[%clk 0:03:56.1]} 19. gxf4 {[%clk 0:04:15]} 19... exf4 {[%clk 0:03:56]} 20.
Bd2 {[%clk 0:04:11.1]} 20... Ne5 {[%clk 0:03:47.6]} 21. Bg4 {[%clk 0:04:05.7]}
21... Qe7 {[%clk 0:03:34]} 22. Kf1 {[%clk 0:03:51.6]} 22... Nxc4 {[%clk
0:03:18.7]} 23. Bc3 {[%clk 0:03:40.6]} 23... Bxc3 {[%clk 0:03:05.9]} 24. Nxc3
{[%clk 0:03:34.1]} 24... f3 {[%clk 0:02:50.7]} 25. Rg1 {[%clk 0:03:26.2]} 25...
Nd2# {[%clk 0:02:43.1]} 0-1

[Event "Live Chess"]
[Site "Chess.com"]
[Date "2023.05.20"]
[Round "-"]
[White "AttackingSnowLeopard"]
[Black "JuperLuper"]
[Result "1-0"]
[WhiteElo "2033"]
[BlackElo "1188"]
[TimeControl "300"]
[EndTime "9:37:51 PDT"]
[Termination "AttackingSnowLeopard won by resignation"]

1. d4 {[%clk 0:04:57.9]} 1... e5 {[%clk 0:04:56]} 2. dxe5 {[%clk 0:04:52.7]}
2... Nc6 {[%clk 0:04:54.8]} 3. Nf3 {[%clk 0:04:52.4]} 3... Qe7 {[%clk
0:04:50.4]} 4. Bf4 {[%clk 0:04:50.8]} 4... Qb4+ {[%clk 0:04:46.3]} 5. Bd2 {[%clk
0:04:48.3]} 5... Qxb2 {[%clk 0:04:42.7]} 6. Nc3 {[%clk 0:04:47.5]} 6... Bb4
{[%clk 0:04:40.2]} 7. Rb1 {[%clk 0:04:45.4]} 7... Qxc3 {[%clk 0:04:39.2]} 8.
Bxc3 {[%clk 0:04:44.1]} 8... Bxc3+ {[%clk 0:04:39.1]} 9. Nd2 {[%clk 0:04:43.1]}
9... Nxe5 {[%clk 0:04:36.4]} 10. e3 {[%clk 0:04:41.8]} 10... Nf6 {[%clk
0:04:32.5]} 11. Be2 {[%clk 0:04:40.3]} 11... Kf8 {[%clk 0:04:30.3]} 12. O-O
{[%clk 0:04:37.3]} 1-0

[Event "Live Chess"]
[Site "Chess.com"]
[Date "2023.05.20"]
[Round "-"]
[White "hello505050"]
[Black "JackCheetham1"]
[Result "0-1"]
[WhiteElo "1075"]
[BlackElo "1707"]
[TimeControl "300"]
[EndTime "9:37:52 PDT"]
[Termination "JackCheetham1 won by checkmate"]

1. e4 {[%clk 0:04:58.2]} 1... c5 {[%clk 0:04:58.8]} 2. Nf3 {[%clk 0:04:56.9]}
2... d6 {[%clk 0:04:57.5]} 3. Bb5+ {[%clk 0:04:52.5]} 3... Bd7 {[%clk
0:04:56.2]} 4. Bxd7+ {[%clk 0:04:51.2]} 4... Nxd7 {[%clk 0:04:56.1]} 5. Nc3
{[%clk 0:04:50.3]} 5... Ngf6 {[%clk 0:04:55.6]} 6. d3 {[%clk 0:04:45.9]} 6... g6
{[%clk 0:04:54.1]} 7. O-O {[%clk 0:04:44.6]} 7... Bg7 {[%clk 0:04:53.4]} 8. Bg5
{[%clk 0:04:36.8]} 8... h6 {[%clk 0:04:52.1]} 9. Bh4 {[%clk 0:04:33.5]} 9... O-O
{[%clk 0:04:50.7]} 10. Nd5 {[%clk 0:04:28]} 10... e6 {[%clk 0:04:37.2]} 11.
Nxf6+ {[%clk 0:04:25.4]} 11... Nxf6 {[%clk 0:04:37.1]} 12. Re1 {[%clk
0:04:19.8]} 12... Qc7 {[%clk 0:04:18.9]} 13. c3 {[%clk 0:04:03.3]} 13... Rad8
{[%clk 0:04:02.3]} 14. d4 {[%clk 0:03:54.5]} 14... cxd4 {[%clk 0:03:57.3]} 15.
Qxd4 {[%clk 0:03:54.4]} 15... a6 {[%clk 0:03:33.2]} 16. Bxf6 {[%clk 0:03:52.8]}
16... e5 {[%clk 0:03:30.7]} 17. Qd5 {[%clk 0:03:39.6]} 17... Bxf6 {[%clk
0:03:27.4]} 18. g3 {[%clk 0:03:35.8]} 18... Qc6 {[%clk 0:03:17.8]} 19. Qxc6
{[%clk 0:03:34.5]} 19... bxc6 {[%clk 0:03:16.5]} 20. Red1 {[%clk 0:03:30.4]}
20... Rfe8 {[%clk 0:03:13.6]} 21. h4 {[%clk 0:03:27.3]} 21... d5 {[%clk
0:03:09.4]} 22. exd5 {[%clk 0:03:24.7]} 22... cxd5 {[%clk 0:03:08.3]} 23. b3
{[%clk 0:03:22.1]} 23... Rd7 {[%clk 0:02:59.8]} 24. c4 {[%clk 0:03:19.5]} 24...
d4 {[%clk 0:02:57.9]} 25. g4 {[%clk 0:03:13.4]} 25... e4 {[%clk 0:02:54.8]} 26.
Ne1 {[%clk 0:03:06.8]} 26... Bxh4 {[%clk 0:02:50.6]} 27. f3 {[%clk 0:03:01.9]}
27... Bxe1 {[%clk 0:02:41.3]} 28. Rxe1 {[%clk 0:03:01.8]} 28... e3 {[%clk
0:02:40.6]} 29. Kf1 {[%clk 0:02:56.1]} 29... d3 {[%clk 0:02:37.5]} 30. Kg2
{[%clk 0:02:42.6]} 30... d2 {[%clk 0:02:29.9]} 31. Rg1 {[%clk 0:02:38.3]} 31...
e2 {[%clk 0:02:26.4]} 32. Kf2 {[%clk 0:02:34.5]} 32... d1=Q {[%clk 0:02:22.7]}
33. Rgxd1 {[%clk 0:02:33.4]} 33... exd1=Q {[%clk 0:02:22.6]} 34. Rxd1 {[%clk
0:02:32.3]} 34... Rxd1 {[%clk 0:02:21.5]} 35. Kg2 {[%clk 0:02:31.3]} 35... Rd2+
{[%clk 0:02:20.5]} 36. Kg3 {[%clk 0:02:30.3]} 36... Rxa2 {[%clk 0:02:19.9]} 37.
c5 {[%clk 0:02:29.2]} 37... Rb2 {[%clk 0:02:17.6]} 38. c6 {[%clk 0:02:28.3]}
38... Rxb3 {[%clk 0:02:16.7]} 39. c7 {[%clk 0:02:27.5]} 39... a5 {[%clk
0:02:14]} 40. g5 {[%clk 0:02:25.8]} 40... h5 {[%clk 0:02:11.2]} 41. Kf4 {[%clk
0:02:21.3]} 41... Rc8 {[%clk 0:02:08.2]} 42. Ke5 {[%clk 0:02:19.3]} 42... Rxc7
{[%clk 0:02:06.7]} 43. Kd6 {[%clk 0:02:18.3]} 43... Rc1 {[%clk 0:02:05.4]} 44.
f4 {[%clk 0:02:16.1]} 44... a4 {[%clk 0:02:03.7]} 45. Kd5 {[%clk 0:02:14.8]}
45... a3 {[%clk 0:02:02.7]} 46. f5 {[%clk 0:02:14.2]} 46... gxf5 {[%clk
0:02:01.3]} 47. Ke5 {[%clk 0:02:13.3]} 47... a2 {[%clk 0:02:00.3]} 48. Kxf5
{[%clk 0:02:12.4]} 48... a1=Q {[%clk 0:01:59.4]} 49. g6 {[%clk 0:02:10.4]} 49...
Rf1+ {[%clk 0:01:54.2]} 50. Kg5 {[%clk 0:02:08.8]} 50... Rg3+ {[%clk 0:01:51.8]}
51. Kh6 {[%clk 0:02:07.2]} 51... Qg7+ {[%clk 0:01:49.4]} 52. Kxh5 {[%clk
0:02:05.9]} 52... Rh1# {[%clk 0:01:45.6]} 0-1

[Event "Live Chess"]
[Site "Chess.com"]
[Date "2023.05.20"]
[Round "-"]
[White "chessleanstrategist"]
[Black "smoggyrabbit"]
[Result "0-1"]
[WhiteElo "416"]
[BlackElo "1632"]
[TimeControl "300"]
[EndTime "9:38:02 PDT"]
[Termination "smoggyrabbit won on time"]

1. c4 {[%clk 0:04:58.8]} 1... e6 {[%clk 0:04:58.4]} 2. Nc3 {[%clk 0:04:56.9]}
2... f5 {[%clk 0:04:57.7]} 3. g3 {[%clk 0:04:51.5]} 3... Nf6 {[%clk 0:04:56.1]}
4. Nf3 {[%clk 0:04:50.4]} 4... d5 {[%clk 0:04:43.6]} 5. b3 {[%clk 0:04:47.4]}
5... c6 {[%clk 0:04:41.3]} 6. d3 {[%clk 0:04:44.9]} 6... Bd6 {[%clk 0:04:40.4]}
7. Bg2 {[%clk 0:04:41.4]} 7... O-O {[%clk 0:04:39.3]} 8. O-O {[%clk 0:04:39.9]}
8... Nbd7 {[%clk 0:04:33.8]} 9. Bb2 {[%clk 0:04:33.5]} 9... b6 {[%clk
0:04:18.1]} 10. a4 {[%clk 0:04:27.5]} 10... Bb7 {[%clk 0:04:16.6]} 11. Nd4
{[%clk 0:04:17.4]} 11... Qe8 {[%clk 0:03:39.1]} 12. Re1 {[%clk 0:04:13.2]} 12...
Ng4 {[%clk 0:02:51.7]} 13. f4 {[%clk 0:01:43.4]} 13... Rf6 {[%clk 0:01:27.3]}
14. e4 {[%clk 0:01:16]} 14... Bc5 {[%clk 0:00:30.8]} 15. Nb1 {[%clk 0:00:23.1]}
15... e5 {[%clk 0:00:16.2]} 16. fxe5 {[%clk 0:00:18.3]} 16... Qxe5 {[%clk
0:00:14.8]} 17. Nd2 {[%clk 0:00:05.6]} 17... Bxd4+ {[%clk 0:00:13.7]} 18. Bxd4
{[%clk 0:00:02.8]} 18... Qxd4+ {[%clk 0:00:13.6]} 0-1

[Event "Live Chess"]
[Site "Chess.com"]
[Date "2023.05.20"]
[Round "-"]
[White "stevefairhurst"]
[Black "Daniel_Gliddon_FA"]
[Result "1-0"]
[WhiteElo "538"]
[BlackElo "858"]
[TimeControl "300"]
[EndTime "9:38:03 PDT"]
[Termination "stevefairhurst won on time"]

1. e4 {[%clk 0:04:56.5]} 1... d6 {[%clk 0:04:56]} 2. Nf3 {[%clk 0:04:55.1]} 2...
Nf6 {[%clk 0:04:48.6]} 3. Bc4 {[%clk 0:04:53.4]} 3... g6 {[%clk 0:04:46.8]} 4.
Ng5 {[%clk 0:04:51.5]} 4... e6 {[%clk 0:04:44.8]} 5. d4 {[%clk 0:04:46.5]} 5...
h6 {[%clk 0:04:43]} 6. d5 {[%clk 0:04:43.2]} 6... hxg5 {[%clk 0:04:38.4]} 7.
dxe6 {[%clk 0:04:41.9]} 7... Bxe6 {[%clk 0:04:34.7]} 8. Bxe6 {[%clk 0:04:40.2]}
8... fxe6 {[%clk 0:04:33.3]} 9. Qf3 {[%clk 0:04:37.6]} 9... Nc6 {[%clk
0:04:24.1]} 10. Bxg5 {[%clk 0:04:35.5]} 10... Be7 {[%clk 0:04:19.9]} 11. e5
{[%clk 0:04:22.4]} 11... dxe5 {[%clk 0:04:12.9]} 12. O-O {[%clk 0:04:19.7]}
12... Qd6 {[%clk 0:04:01.5]} 13. Bxf6 {[%clk 0:04:14.8]} 13... e4 {[%clk
0:03:57]} 14. Qf4 {[%clk 0:04:10.3]} 14... Qxf4 {[%clk 0:03:54.6]} 15. Bxh8
{[%clk 0:04:08]} 15... Bd6 {[%clk 0:03:49.2]} 16. g3 {[%clk 0:04:03.2]} 16...
Qh6 {[%clk 0:03:43.7]} 17. Bc3 {[%clk 0:03:57.3]} 17... Kd7 {[%clk 0:03:38.2]}
18. Nd2 {[%clk 0:03:55.5]} 18... e3 {[%clk 0:03:32.2]} 19. fxe3 {[%clk
0:03:53.5]} 19... Qxe3+ {[%clk 0:03:28.7]} 20. Kg2 {[%clk 0:03:44.3]} 20... Ne5
{[%clk 0:03:18.8]} 21. Rae1 {[%clk 0:03:24.9]} 21... Qc5 {[%clk 0:03:07.6]} 22.
Ne4 {[%clk 0:03:18.9]} 22... Qc6 {[%clk 0:02:57.8]} 23. Bxe5 {[%clk 0:03:12.3]}
23... Bxe5 {[%clk 0:02:53.2]} 24. Rd1+ {[%clk 0:03:10.6]} 24... Ke7 {[%clk
0:02:48.5]} 25. Rde1 {[%clk 0:03:02.9]} 25... Rd8 {[%clk 0:02:41.4]} 26. Rf2
{[%clk 0:02:46.4]} 26... Rh8 {[%clk 0:02:27.3]} 27. Kf1 {[%clk 0:02:40.6]} 27...
Bd4 {[%clk 0:01:52.7]} 28. Rfe2 {[%clk 0:02:24]} 28... Rf8+ {[%clk 0:01:43.1]}
29. Kg2 {[%clk 0:02:21.9]} 29... Bxb2 {[%clk 0:01:30.7]} 30. Kg1 {[%clk
0:02:14.9]} 30... Bd4+ {[%clk 0:01:25.9]} 31. Kg2 {[%clk 0:02:10.6]} 31... Qb6
{[%clk 0:01:19.6]} 32. Ng5 {[%clk 0:02:00.8]} 32... Rf2+ {[%clk 0:01:16.2]} 33.
Rxf2 {[%clk 0:01:44.5]} 33... Bxf2 {[%clk 0:01:04.2]} 34. Rf1 {[%clk 0:01:43.3]}
34... Qc6+ {[%clk 0:00:59.6]} 35. Kxf2 {[%clk 0:01:40.5]} 35... Qxc2+ {[%clk
0:00:57.5]} 36. Kg1 {[%clk 0:01:39]} 36... Qc5+ {[%clk 0:00:49.4]} 37. Kg2
{[%clk 0:01:35]} 37... Qxg5 {[%clk 0:00:47.9]} 38. h4 {[%clk 0:01:31.3]} 38...
Qd2+ {[%clk 0:00:44.3]} 39. Kg1 {[%clk 0:01:29.3]} 39... Qe3+ {[%clk 0:00:42.3]}
40. Kg2 {[%clk 0:01:27.4]} 40... Qe2+ {[%clk 0:00:39.1]} 41. Rf2 {[%clk
0:01:24.8]} 41... Qxf2+ {[%clk 0:00:37.2]} 42. Kxf2 {[%clk 0:01:23.8]} 42... Kd6
{[%clk 0:00:35.6]} 43. Ke2 {[%clk 0:01:22.7]} 43... Ke5 {[%clk 0:00:32.5]} 44.
Kd3 {[%clk 0:01:18.4]} 44... Kf5 {[%clk 0:00:30.5]} 45. Kc4 {[%clk 0:01:17.5]}
45... Kg4 {[%clk 0:00:29.4]} 46. Kc5 {[%clk 0:01:16.7]} 46... Kxg3 {[%clk
0:00:28.3]} 47. a4 {[%clk 0:01:11.5]} 47... e5 {[%clk 0:00:27.1]} 48. Kd5 {[%clk
0:01:09.5]} 48... Kf4 {[%clk 0:00:22.6]} 49. a5 {[%clk 0:01:06.2]} 49... e4
{[%clk 0:00:21.5]} 50. Kd4 {[%clk 0:01:04.5]} 50... e3 {[%clk 0:00:19]} 51. Kd3
{[%clk 0:01:03.6]} 51... Kf3 {[%clk 0:00:17.6]} 52. h5 {[%clk 0:01:02.5]} 52...
Kf2 {[%clk 0:00:16.1]} 53. Ke4 {[%clk 0:00:54.5]} 53... e2 {[%clk 0:00:14.9]}
54. Kd5 {[%clk 0:00:53.8]} 54... e1=Q {[%clk 0:00:13.1]} 55. Kc5 {[%clk
0:00:51.8]} 55... Qc3+ {[%clk 0:00:10.9]} 56. Kb5 {[%clk 0:00:50.5]} 56... Qc6+
{[%clk 0:00:09.3]} 57. Kb4 {[%clk 0:00:49.1]} 57... a6 {[%clk 0:00:08]} 58. h6
{[%clk 0:00:47.8]} 58... Qb5+ {[%clk 0:00:06.7]} 59. Kc3 {[%clk 0:00:45.9]}
59... Qc5+ {[%clk 0:00:05.3]} 60. Kb3 {[%clk 0:00:44.4]} 60... Qe3+ {[%clk
0:00:03.4]} 61. Kc4 {[%clk 0:00:43.3]} 61... Ke2 {[%clk 0:00:02.5]} 62. Kd5
{[%clk 0:00:42.1]} 62... Kd3 {[%clk 0:00:00.1]} 63. h7 {[%clk 0:00:38.1]} 1-0

[Event "Live Chess"]
[Site "Chess.com"]
[Date "2023.05.20"]
[Round "-"]
[White "jagbama"]
[Black "TobyQuaite"]
[Result "0-1"]
[WhiteElo "1113"]
[BlackElo "1699"]
[TimeControl "300"]
[EndTime "9:38:13 PDT"]
[Termination "TobyQuaite won by resignation"]

1. e4 {[%clk 0:04:57.2]} 1... e6 {[%clk 0:04:59.4]} 2. d4 {[%clk 0:04:54.6]}
2... d5 {[%clk 0:04:58.9]} 3. e5 {[%clk 0:04:53.6]} 3... c5 {[%clk 0:04:57.7]}
4. c3 {[%clk 0:04:52.3]} 4... Nc6 {[%clk 0:04:57.3]} 5. Nf3 {[%clk 0:04:50.3]}
5... Qb6 {[%clk 0:04:56.9]} 6. b3 {[%clk 0:04:42.7]} 6... cxd4 {[%clk
0:04:54.6]} 7. Nxd4 {[%clk 0:04:38.4]} 7... Nxe5 {[%clk 0:04:53.1]} 8. Bb5+
{[%clk 0:04:32.5]} 8... Bd7 {[%clk 0:04:51.2]} 9. Bxd7+ {[%clk 0:04:31.2]} 9...
Nxd7 {[%clk 0:04:51.1]} 10. Be3 {[%clk 0:04:28.8]} 10... Bc5 {[%clk 0:04:44.6]}
11. b4 {[%clk 0:04:26.6]} 11... Be7 {[%clk 0:04:21.2]} 12. Nxe6 {[%clk
0:04:23.8]} 12... Qxe6 {[%clk 0:04:19.6]} 13. O-O {[%clk 0:04:20.5]} 13... Ngf6
{[%clk 0:04:17.3]} 14. Re1 {[%clk 0:04:19.4]} 14... Qc6 {[%clk 0:04:09]} 15. Bc5
{[%clk 0:04:17.3]} 15... Nxc5 {[%clk 0:04:06.5]} 16. bxc5 {[%clk 0:04:16.1]}
16... Qxc5 {[%clk 0:04:05.9]} 17. Qe2 {[%clk 0:04:12]} 17... Rd8 {[%clk
0:03:40.7]} 18. Nd2 {[%clk 0:04:03.1]} 18... Rd7 {[%clk 0:03:38.5]} 19. Nb3
{[%clk 0:03:59.3]} 19... Qd6 {[%clk 0:03:37.3]} 20. Nd4 {[%clk 0:03:55.7]} 20...
g6 {[%clk 0:03:30.3]} 21. Rad1 {[%clk 0:03:40.8]} 21... O-O {[%clk 0:03:28.7]}
22. c4 {[%clk 0:03:31.2]} 22... Re8 {[%clk 0:03:19.6]} 23. cxd5 {[%clk
0:03:23.9]} 23... Bf8 {[%clk 0:03:18.5]} 24. Qf3 {[%clk 0:03:10.1]} 24... Rxe1+
{[%clk 0:03:09.4]} 25. Rxe1 {[%clk 0:03:08.5]} 25... Qxd5 {[%clk 0:02:58.6]} 26.
Qxf6 {[%clk 0:03:04.8]} 26... Qxd4 {[%clk 0:02:58]} 27. Qxd4 {[%clk 0:03:03]}
27... Rxd4 {[%clk 0:02:56.9]} 28. g3 {[%clk 0:02:54.3]} 28... Ra4 {[%clk
0:02:54.7]} 29. Re8 {[%clk 0:02:46.2]} 29... Rxa2 {[%clk 0:02:52.8]} 30. Kg2
{[%clk 0:02:44.8]} 30... b5 {[%clk 0:02:52]} 31. Rb8 {[%clk 0:02:42]} 31... b4
{[%clk 0:02:51.5]} 32. Kf3 {[%clk 0:02:37.9]} 32... a5 {[%clk 0:02:50.9]} 33.
Ke3 {[%clk 0:02:35.3]} 33... a4 {[%clk 0:02:50.4]} 34. Kd3 {[%clk 0:02:33.7]}
34... Rxf2 {[%clk 0:02:49.3]} 35. Kc4 {[%clk 0:02:30.4]} 35... Rxh2 {[%clk
0:02:48]} 0-1